Workbook

Sheet kostenbaten prod teelten (hidden)
A1: Dit rekenblad werd ontwikkeld in het kader van de projecten 'Dorp van de 7 Neten, proeftuin voor agrobiodiversiteit' | C1: RODE KLAVER 3j 4 sn | I1: indien op-brengst lager | J1: GRASKLAVER (5 snedes maaien , derogatie) | P1: indien op-brengst lager | Q1: GRAS (5 snedes maaien , derogatie) | W1: indien op-brengst lager | X1: 1 snede GRAS + MAIS (derogatie) | AD1: indien op-brengst lager | AE1: KUILMAIS zonder groenbedekker | AK1: indien op-brengst lager | AL1: KUILMAIS met groenbedekker | AR1: indien op-brengst lager
A2: en 'Zot van pAtrijs' | C2: hoeveelheid | D2: eenheid | E2: kost /eenheid | F2: kost/ha | G2: aant x/jaar | H2: EUR/ha/jaar | I2: =-dashboard!$C$17 -> -0.5 | J2: hoeveelheid | K2: eenheid | L2: kost /eenheid | M2: kost/ha | N2: aant x/jaar | O2: EUR/ha/jaar | P2: =-dashboard!$C$17 -> -0.5 | Q2: hoeveelheid | R2: eenheid | S2: kost /eenheid | T2: kost/ha | U2: aant x/jaar | V2: EUR/ha/jaar | W2: =-dashboard!$C$17 -> -0.5 | X2: hoeveelheid | Y2: eenheid | Z2: kost /eenheid | AA2: kost/ha | AB2: aant x/jaar | AC2: EUR/ha/jaar | AD2: =-dashboard!$C$17 -> -0.5 | AE2: hoeveelheid | AF2: eenheid | AG2: kost /eenheid | AH2: kost/ha | AI2: aant x/jaar | AJ2: EUR/ha/jaar | AK2: =-dashboard!$C$17 -> -0.5 | AL2: hoeveelheid | AM2: eenheid | AN2: kost /eenheid | AO2: kost/ha | AP2: aant x/jaar | AQ2: EUR/ha/jaar | AR2: =-dashboard!$C$17 -> -0.5
A3: KOSTEN
B4: Algemene kosten (pacht, analyse, onderhoud grachten, …) | F4: 420 | G4: 1 | H4: =F4*G4 -> 420 | I4: =H4 -> 420 | M4: 420 | N4: 1 | O4: =M4*N4 -> 420 | P4: =O4 -> 420 | T4: 420 | U4: 1 | V4: =T4*U4 -> 420 | W4: =V4 -> 420 | AA4: 420 | AB4: 1 | AC4: =AA4*AB4 -> 420 | AD4: =AC4 -> 420 | AH4: 420 | AI4: 1 | AJ4: =AH4*AI4 -> 420 | AK4: =AJ4 -> 420 | AO4: 420 | AP4: 1 | AQ4: =AO4*AP4 -> 420 | AR4: =AQ4 -> 420
B5: Bodembewerking | H5: =25+15 -> 40 | I5: 40 | M5: =65+75+45 -> 185 | N5: =1/4 -> 0.25 | O5: 46.25 | P5: 46.25 | T5: =65+75+45 -> 185 | U5: =1/4 -> 0.25 | V5: 46.25 | W5: 46.25 | AA5: 210 | AB5: 1 | AC5: 210 | AD5: 210 | AH5: =75+45 -> 120 | AI5: 1 | AJ5: 120 | AK5: 120 | AO5: =75+45 -> 120 | AP5: 1 | AQ5: 120 | AR5: 120
B6: Zaaizaad (incl. goenbedekker) | C6: 15 | E6: 9 | F6: =C6*E6 -> 135 | G6: =1/3 -> 0.3333333333 | H6: 45 | I6: 45 | J6: 45 | L6: 6 | M6: =J6*L6 -> 270 | N6: =1/4 -> 0.25 | O6: 67.5 | P6: 67.5 | Q6: 45 | S6: 5.4 | T6: =Q6*S6 -> 243 | U6: =1/4 -> 0.25 | V6: 60.75 | W6: 60.75 | X6: 1.9 | Y6: dosis | Z6: 95 | AA6: =X6*Z6 -> 180.5 | AB6: 1 | AC6: 180.5 | AD6: 180.5 | AE6: 2 | AF6: dosis | AG6: 95 | AH6: =AE6*AG6 -> 190 | AI6: 1 | AJ6: 190 | AK6: 190 | AL6: 2 | AM6: dosis | AN6: 95 | AO6: =AL6*AN6 -> 190 | AP6: 1 | AQ6: 190 | AR6: 190
B7: Zaaizaad groenbemester | H7: 0 | I7: 0 | O7: 0 | P7: 0 | V7: 0 | W7: 0 | X7: 50 | Y7: kg/ha | Z7: 3.5 | AA7: =X7*Z7 -> 175 | AB7: 1 | AC7: 175 | AD7: 175 | AE7: 0 | AF7: kg/ha | AG7: 2.2 | AH7: =AE7*AG7 -> 0 | AI7: 1 | AJ7: 0 | AK7: 0 | AL7: 30 | AM7: kg/ha | AN7: 2.2 | AO7: =AL7*AN7 -> 66 | AP7: 1 | AQ7: 66 | AR7: 66
B8: Zaaien (incl groenbedekker zaaien) | F8: 65 | G8: =1/3 -> 0.3333333333 | H8: 21.66666667 | I8: 21.66666667 | M8: 65 | N8: =1/4 -> 0.25 | O8: 16.25 | P8: 16.25 | T8: 65 | U8: =1/4 -> 0.25 | V8: 16.25 | W8: 16.25 | AA8: =55+65 -> 120 | AB8: 1 | AC8: 120 | AD8: 120 | AH8: 55 | AI8: 1 | AJ8: 55 | AK8: 55 | AO8: =55+45 -> 100 | AP8: 1 | AQ8: 100 | AR8: 100
B9: Gewasbescherming product | F9: =25*3 -> 75 | G9: =1/3 -> 0.3333333333 | H9: 25 | I9: 25 | M9: 60 | N9: 0.25 | O9: 15 | P9: 15 | T9: 60 | U9: 0.25 | V9: 15 | W9: 15 | AA9: 100 | AB9: 1 | AC9: 100 | AD9: 100 | AH9: 100 | AI9: 1 | AJ9: 100 | AK9: 100 | AO9: 100 | AP9: 1 | AQ9: 100 | AR9: 100
B10: Gewasbescherming toepassing | F10: 30 | G10: =1/3 -> 0.3333333333 | H10: 10 | I10: 10 | M10: 30 | N10: 0.25 | O10: 7.5 | P10: 7.5 | T10: 30 | U10: 0.25 | V10: 7.5 | W10: 7.5 | AA10: 30 | AB10: 1 | AC10: 30 | AD10: 30 | AH10: 30 | AI10: 1 | AJ10: 30 | AK10: 30 | AO10: 30 | AP10: 1 | AQ10: 30 | AR10: 30
B11: Klepelen/maaien of vernietigen | F11: 0 | G11: 1 | H11: 0 | I11: 0 | M11: 0 | N11: 1 | O11: 0 | P11: 0 | T11: 0 | U11: 1 | V11: 0 | W11: 0 | AA11: 0 | AB11: 1 | AC11: 0 | AD11: 0 | AJ11: 0 | AK11: 0 | AQ11: 0 | AR11: 0
B12: Oogst | F12: =dashboard!D14 -> 150 | G12: 4 | H12: =F12*G12 -> 600 | I12: 600 | M12: =dashboard!D14 -> 150 | N12: =dashboard!D15 -> 5 | O12: 750 | P12: 750 | T12: =dashboard!D14 -> 150 | U12: =dashboard!D15 -> 5 | V12: 750 | W12: 750 | AA12: =dashboard!D14+dashboard!C13 -> 460 | AB12: 1 | AC12: =AA12*AB12 -> 460 | AD12: =AC12 -> 460 | AH12: =dashboard!C13 -> 310 | AI12: 1 | AJ12: 310 | AK12: 310 | AO12: =dashboard!C13 -> 310 | AP12: 1 | AQ12: 310 | AR12: 310
B13: Kunstmest product | F13: 245 | G13: 1 | H13: 245 | I13: 245 | M13: 263 | N13: 1 | O13: 263 | P13: 263 | T13: 340 | U13: 1 | V13: 340 | W13: 340 | AA13: =53+143 -> 196 | AB13: 1 | AC13: 196 | AD13: 196 | AH13: 107 | AI13: 1 | AJ13: 107 | AK13: 107 | AO13: 107 | AP13: 1 | AQ13: 107 | AR13: 107
B14: Kunstmest toepassing | F14: 10 | G14: 2 | H14: 20 | I14: 20 | M14: 10 | N14: 3 | O14: 30 | P14: 30 | T14: 10 | U14: 5 | V14: 50 | W14: 50 | AA14: 10 | AB14: 3 | AC14: 30 | AD14: 30 | AH14: 10 | AI14: 1 | AJ14: 10 | AK14: 10 | AO14: 10 | AP14: 1 | AQ14: 10 | AR14: 10
B15: Dierlijke mest toepassing | C15: 25 | E15: =dashboard!D10 -> 4.5 | F15: =C15*E15 -> 112.5 | G15: 1 | H15: 112.5 | I15: 112.5 | J15: 50 | L15: =dashboard!D10 -> 4.5 | M15: =J15*L15 -> 225 | N15: 1 | O15: 225 | P15: 225 | Q15: 50 | S15: =dashboard!D10 -> 4.5 | T15: =Q15*S15 -> 225 | U15: 1 | V15: 225 | W15: 225 | X15: =25+25 -> 50 | Z15: =AA15/X15 -> 4 | AA15: =25*dashboard!D10+25*dashboard!C10 -> 200 | AB15: 1 | AC15: 200 | AD15: 200 | AE15: 35 | AG15: =dashboard!$C$10 -> 3.5 | AH15: =AE15*AG15 -> 122.5 | AI15: 1 | AJ15: 122.5 | AK15: 122.5 | AL15: 35 | AN15: =dashboard!$C$10 -> 3.5 | AO15: =AL15*AN15 -> 122.5 | AP15: 1 | AQ15: 122.5 | AR15: 122.5
B16: TOTALE KOSTPRIJS | H16: =SUM(H4:H15) -> 1539.166667 | I16: =SUM(I4:I15) -> 1539.166667 | O16: =SUM(O4:O15) -> 1840.5 | P16: =SUM(P4:P15) -> 1840.5 | V16: =SUM(V4:V15) -> 1930.75 | W16: =SUM(W4:W15) -> 1930.75 | AC16: =SUM(AC4:AC15) -> 2121.5 | AD16: =SUM(AD4:AD15) -> 2121.5 | AJ16: =SUM(AJ4:AJ15) -> 1464.5 | AK16: =SUM(AK4:AK15) -> 1464.5 | AQ16: =SUM(AQ4:AQ15) -> 1575.5 | AR16: =SUM(AR4:AR15) -> 1575.5
A17: BATEN
A18: 1 | B18: Uitgespaarde kost mestafzet/vergoeding plaatsingsruimte mest | C18: =C15 -> 25 | D18: m3 | E18: =dashboard!$C$11 -> 14 | F18: EUR/m3 | H18: =C18*E18 -> 350 | I18: =H18 -> 350 | J18: =J15 -> 50 | K18: m3 | L18: =dashboard!$C$11 -> 14 | M18: EUR/m3 | O18: =J18*L18 -> 700 | P18: =O18 -> 700 | Q18: =Q15 -> 50 | R18: m3 | S18: =dashboard!$C$11 -> 14 | T18: EUR/m3 | V18: =Q18*S18 -> 700 | W18: =V18 -> 700 | X18: =X15 -> 50 | Y18: m3 | Z18: =dashboard!$C$11 -> 14 | AA18: EUR/m3 | AC18: =X18*Z18 -> 700 | AD18: =AC18 -> 700 | AE18: 35 | AF18: m3 | AG18: =dashboard!$C$11 -> 14 | AH18: EUR/m3 | AJ18: =AE18*AG18 -> 490 | AK18: =AJ18 -> 490 | AL18: 35 | AM18: m3 | AN18: =dashboard!$C$11 -> 14 | AO18: EUR/m3 | AQ18: =AL18*AN18 -> 490 | AR18: =AQ18 -> 490
A19: =IF(dashboard!$L$54=TRUE,0,1) -> 1 | B19: Verkoopwaarde | C19: 11 | D19: ton DS/ha | E19: =dashboard!D12 -> 120 | F19: EUR/ ton DS* | G19: 0.1 | H19: =$A$19*C19*E19 -> 1320 | I19: =C19*(1+I2)*E19*$A19 -> 660 | J19: 12.5 | K19: ton DS/ha | L19: =dashboard!D12 -> 120 | M19: EUR/ ton DS* | N19: 0.1 | O19: =$A$19*J19*L19 -> 1500 | P19: =J19*(1+P2)*L19*$A19 -> 750 | Q19: =dashboard!D16 -> 11 | R19: ton DS/ha | S19: =dashboard!D12 -> 120 | T19: EUR/ ton DS* | U19: 0.1 | V19: =A19*Q19*S19 -> 1320 | W19: =Q19*(1+W2)*S19*$A19 -> 660 | X19: =dashboard!C16+dashboard!D16/5 -> 18.9 | Y19: ton DS/ha | Z19: =AC19/X19 -> 102.3280423 | AA19: EUR/ ton DS* | AC19: =dashboard!C16*dashboard!C12+dashboard!D16/5*dashboard!D12 -> 1934 | AD19: =X19*(1+AD2)*Z19*A19 -> 967 | AE19: =dashboard!$C$16 -> 16.7 | AF19: ton DS/ha | AG19: =dashboard!$C$12 -> 100 | AH19: EUR/ ton DS* | AJ19: =AE19*AG19*$A19 -> 1670 | AK19: =AE19*(1+AK2)*AG19*$A19 -> 835 | AL19: =dashboard!$C$16 -> 16.7 | AM19: ton DS/ha | AN19: =dashboard!$C$12 -> 100 | AO19: EUR/ ton DS* | AQ19: =AL19*AN19*$A19 -> 1670 | AR19: =AL19*(1+AR2)*AN19*$A19 -> 835
A20: =IF(dashboard!$L$54=TRUE,1,0) -> 0 | B20: Voederwaardeopbrengst (voederwaardeprijzen.nl) | C20: 730 | D20: VEM | E20: =dashboard!$K$22 -> 16.13846154 | F20: ct/kVEM | G20: =(C19*(1-H20)*C20*E20)/100 -> 1166.326615 | H20: 0.1 | J20: 870 | K20: VEM | L20: =dashboard!$K$22 -> 16.13846154 | M20: ct/kVEM | N20: =(J19*(1-O20)*J20*L20)/100 -> 1579.551923 | O20: 0.1 | Q20: =dashboard!D18 -> 900 | R20: VEM | S20: =dashboard!$K$22 -> 16.13846154 | T20: ct/kVEM | U20: =(Q19*(1-V20)*Q20*S20)/100 -> 1437.936923 | V20: 0.1 | X20: =(dashboard!C16*dashboard!C18+dashboard!D16/dashboard!D15*dashboard!D18)/(dashboard!C16+dashboard!D16/5) -> 944.1798942 | Y20: VEM | Z20: =dashboard!$K$22 -> 16.13846154 | AA20: ct/kVEM | AB20: =(X19*(1-AC20)*X20*Z20)/100 -> 2591.917615 | AC20: 0.1 | AE20: =dashboard!$C$18 -> 950 | AF20: VEM | AG20: =dashboard!$K$22 -> 16.13846154 | AH20: ct/kVEM | AI20: =(AE19*(1-AJ20)*AE20*AG20)/100 -> 2304.330231 | AJ20: 0.1 | AL20: =dashboard!$C$18 -> 950 | AM20: VEM | AN20: =dashboard!$K$22 -> 16.13846154 | AO20: ct/kVEM | AP20: =(AL19*(1-AQ20)*AL20*AN20)/100 -> 2304.330231 | AQ20: 0.1
C21: 80 | D21: DVE | E21: =dashboard!$K$24 -> 66.99230769 | F21: ct/kgDVE | G21: =C19*(1-H20)*C21*E21/100 -> 530.5790769 | H21: =(G20+G21)*$A$20 -> 0 | I21: =H21*(1+I2) -> 0 | J21: =dashboard!$D$19 -> 65 | K21: DVE | L21: =dashboard!$K$24 -> 66.99230769 | M21: ct/kgDVE | N21: =J19*(1-O20)*J21*L21/100 -> 489.88125 | O21: =(N20+N21)*$A$20 -> 0 | P21: =O21*(1+P2) -> 0 | Q21: =dashboard!$D$19 -> 65 | R21: DVE | S21: =dashboard!$K$24 -> 66.99230769 | T21: ct/kgDVE | U21: =Q19*(1-V20)*Q21*S21/100 -> 431.0955 | V21: =(U20+U21)*$A$20 -> 0 | W21: =V21*(1+W2) -> 0 | X21: =(dashboard!C16*dashboard!C19+dashboard!D16/dashboard!D15*dashboard!D19)/(dashboard!C16+dashboard!D16/dashboard!D15) -> 53.51322751 | Y21: DVE | Z21: =dashboard!$K$24 -> 66.99230769 | AA21: ct/kgDVE | AB21: =X19*(1-AC20)*X21*Z21/100 -> 609.80418 | AC21: =(AB20+AB21)*$A$20 -> 0 | AD21: =AC21*(1+AD2) -> 0 | AE21: =dashboard!$C$19 -> 52 | AF21: DVE | AG21: =dashboard!$K$24 -> 66.99230769 | AH21: ct/kgDVE | AI21: =AE19*(1-AJ20)*AE21*AG21/100 -> 523.58508 | AJ21: =(AI20+AI21)*$A$20 -> 0 | AK21: =AJ21*(1+AK2) -> 0 | AL21: =dashboard!$C$19 -> 52 | AM21: DVE | AN21: =dashboard!$K$24 -> 66.99230769 | AO21: ct/kgDVE | AP21: =AL19*(1-AQ20)*AL21*AN21/100 -> 523.58508 | AQ21: =(AP20+AP21)*$A$20 -> 0 | AR21: =AQ21*(1+AR2) -> 0
A22: 1 | B22: Vergoeding BO, premie, .. (°inkomenssteun+vergroening GLB niet meegerekend) | H22: 450 | I22: =H22 -> 450 | O22: 450 | P22: =O22 -> 450 | V22: 0 | W22: =V22 -> 0 | AC22: 0 | AD22: =AC22 -> 0 | AJ22: 0 | AK22: =AJ22 -> 0 | AQ22: 0 | AR22: =AQ22 -> 0
B23: TOTALE OPBRENGST | H23: =SUM(H18:H19,H21:H22) -> 2120 | I23: =SUM(I18:I19,I21:I22) -> 1460 | O23: =SUM(O18:O19,O21:O22) -> 2650 | P23: =SUM(P18:P19,P21:P22) -> 1900 | V23: =SUM(V18:V19,V21:V22) -> 2020 | W23: =SUM(W18:W19,W21:W22) -> 1360 | AC23: =SUM(AC18:AC19,AC21:AC22) -> 2634 | AD23: =SUM(AD18:AD19,AD21:AD22) -> 1667 | AJ23: =SUM(AJ18:AJ19,AJ21:AJ22) -> 2160 | AK23: =SUM(AK18:AK19,AK21:AK22) -> 1325 | AQ23: =SUM(AQ18:AQ19,AQ21:AQ22) -> 2160 | AR23: =SUM(AR18:AR19,AR21:AR22) -> 1325
A24: SALDO/ha | H24: =H23-H16 -> 580.8333333 | I24: =I23-I16 -> -79.16666667 | O24: =O23-O16 -> 809.5 | P24: =P23-P16 -> 59.5 | V24: =V23-V16 -> 89.25 | W24: =W23-W16 -> -570.75 | AC24: =AC23-AC16 -> 512.5 | AD24: =AD23-AD16 -> -454.5 | AJ24: =AJ23-AJ16 -> 695.5 | AK24: =AK23-AK16 -> -139.5 | AQ24: =AQ23-AQ16 -> 584.5 | AR24: =AR23-AR16 -> -250.5
A25: opp EAG | X25: 0.3 | Y25: ha EAG | AE25: 0 | AF25: ha EAG | AL25: 0 | AM25: ha EAG
C27: Jaargemiddelde voederwaardeprijzen (ct) 2017 | J27: Jaargemiddelde voederwaardeprijzen (ct) 2017 | Q27: Jaargemiddelde voederwaardeprijzen (ct) 2017 | X27: Jaargemiddelde voederwaardeprijzen (ct) 2017
C28: kVEM | E28: 16.13846154 | F28: ct/kVEM | J28: kVEM | L28: 16.13846154 | M28: ct/kVEM | Q28: kVEM | S28: 16.13846154 | T28: ct/kVEM | X28: kVEM | Z28: 16.13846154 | AA28: ct/kVEM
C29: kgDVE toeslag | E29: 66.99230769 | F29: ct/kgDVE | J29: kgDVE toeslag | L29: 66.99230769 | M29: ct/kgDVE | Q29: kgDVE toeslag | S29: 66.99230769 | T29: ct/kgDVE | X29: kgDVE toeslag | Z29: 66.99230769 | AA29: ct/kgDVE
B31: =C1 -> RODE KLAVER 3j 4 sn
B32: opbrengst DS/ha | C32: =C19 -> 11 | J32: =J19 -> 12.5 | Q32: =Q19 -> 11 | X32: =X19 -> 18.9 | AE32: =AE19 -> 16.7 | AL32: =AL19 -> 16.7
B33: VEM | C33: =C20 -> 730 | J33: =J20 -> 870 | Q33: =Q20 -> 900 | X33: =X20 -> 944.1798942 | AE33: =AE20 -> 950 | AL33: =AL20 -> 950
B34: DVE | C34: =C21 -> 80 | J34: =J21 -> 65 | Q34: =Q21 -> 65 | X34: =X21 -> 53.51322751 | AE34: =AE21 -> 52 | AL34: =AL21 -> 52
B35: KOSTEN
B36: algemeen | C36: =H4 -> 420 | J36: =O4 -> 420 | Q36: =V4 -> 420 | X36: =AC4 -> 420 | AE36: =AJ4 -> 420 | AL36: =AQ4 -> 420
B37: aanleg (bodembewerking, zaai) | C37: =H5+H7+H8 -> 61.66666667 | J37: =O5+O7+O8 -> 62.5 | Q37: =V5+V7+V8 -> 62.5 | X37: =AC5+AC7+AC8 -> 505 | AE37: =AJ5+AJ7+AJ8 -> 175 | AL37: =AQ5+AQ7+AQ8 -> 286
B38: zaaizaad | C38: =H6+H7 -> 45 | J38: =O6+O7 -> 67.5 | Q38: =V6+V7 -> 60.75 | X38: =AC6+AC7 -> 355.5 | AE38: =AJ6+AJ7 -> 190 | AL38: =AQ6+AQ7 -> 256
B39: gewasbescherming | C39: =H9+H10 -> 35 | J39: =O9+O10 -> 22.5 | Q39: =V9+V10 -> 22.5 | X39: =AC9+AC10 -> 130 | AE39: =AJ9+AJ10 -> 130 | AL39: =AQ9+AQ10 -> 130
B40: kunstmest | C40: =H13+H14 -> 265 | J40: =O13+O14 -> 293 | Q40: =V13+V14 -> 390 | X40: =AC13+AC14 -> 226 | AE40: =AJ13+AJ14 -> 117 | AL40: =AQ13+AQ14 -> 117
B41: dierlijke mest toepassing | C41: =H15 -> 112.5 | J41: =O15 -> 225 | Q41: =V15 -> 225 | X41: =AC15 -> 200 | AE41: =AJ15 -> 122.5 | AL41: =AQ15 -> 122.5
B42: oogst | C42: =H12+H11 -> 600 | J42: =O12+O11 -> 750 | Q42: =V12+V11 -> 750 | X42: =AC12+AC11 -> 460 | AE42: =AJ12+AJ11 -> 310 | AL42: =AQ12+AQ11 -> 310
B43: TOTAAL KOSTEN | C43: =SUM(C36:C42) -> 1539.166667 | J43: =SUM(J36:J42) -> 1840.5 | Q43: =SUM(Q36:Q42) -> 1930.75 | X43: =SUM(X36:X42) -> 2296.5 | AE43: =SUM(AE36:AE42) -> 1464.5 | AL43: =SUM(AL36:AL42) -> 1641.5
B44: BATEN
B45: uitgespaarde mestafzet | C45: =H18 -> 350 | J45: =O18 -> 700 | Q45: =V18 -> 700 | X45: =AC18 -> 700 | AE45: =AJ18 -> 490 | AL45: =AQ18 -> 490
B46: voederwaardeopbrengst | C46: =H21 -> 0 | J46: =O21 -> 0 | Q46: =V21 -> 0 | X46: =AC21 -> 0 | AE46: =AJ21 -> 0 | AL46: =AQ21 -> 0
B47: vergoeding of premie | C47: =H22 -> 450 | J47: =O22 -> 450 | Q47: =V22 -> 0 | X47: =AC22 -> 0 | AE47: =AJ22 -> 0 | AL47: =AQ22 -> 0
B48: TOTAAL BATEN | C48: =SUM(C45:C47) -> 800 | J48: =SUM(J45:J47) -> 1150 | Q48: =SUM(Q45:Q47) -> 700 | X48: =SUM(X45:X47) -> 700 | AE48: =SUM(AE45:AE47) -> 490 | AL48: =SUM(AL45:AL47) -> 490
B49: SALDO | C49: =C48-C43 -> -739.1666667 | J49: =J48-J43 -> -690.5 | Q49: =Q48-Q43 -> -1230.75 | X49: =X48-X43 -> -1596.5 | AE49: =AE48-AE43 -> -974.5 | AL49: =AL48-AL43 -> -1151.5

Sheet kostenbaten niet prod teelt (hidden)
A1: Dit rekenblad werd ontwikkeld in het kader van de projecten 'Dorp van de 7 Neten, proeftuin voor agrobiodiversiteit' | C1: BO GRASSTROOK 15/6 | I1: combinatie met EAG | J1: BO GEMENGDE GRASSTROOK | P1: combinatie met EAG | Q1: BO BLOEMENSTROOK | W1: combinatie met EAG | X1: BO HAAG | AD1: EAG braak met bloemenmengsel (teeltcode 9832) | AJ1: EAG AKR | AP1: EAG braak zonder inzaai (teeltcode 89) of bosrand zonder productie
A2: en 'Zot van pAtrijs' | C2: hoeveelheid | D2: eenheid | E2: kost /eenheid | F2: kost/ha | G2: aant x/jaar | H2: EUR/ha/jaar | J2: hoeveelheid | K2: eenheid | L2: kost /eenheid | M2: kost/ha | N2: aant x/jaar | O2: EUR/ha/jaar | Q2: hoeveelheid | R2: eenheid | S2: kost /eenheid | T2: kost/ha | U2: aant x/jaar | V2: EUR/ha/jaar | X2: hoeveelheid | Y2: eenheid | Z2: kost /eenheid | AA2: kost/ha | AB2: aant x/jaar | AC2: EUR/ha/jaar | AD2: hoeveelheid | AE2: eenheid | AF2: kost /eenheid | AG2: kost/ha | AH2: aant x/jaar | AI2: EUR/ha/jaar | AJ2: hoeveelheid | AK2: eenheid | AL2: kost /eenheid | AM2: kost/ha | AN2: aant x/jaar | AO2: EUR/ha/jaar | AP2: hoeveelheid | AQ2: eenheid | AR2: kost /eenheid | AS2: kost/ha | AT2: aant x/jaar | AU2: EUR/ha/jaar
A3: KOSTEN
B4: Algemene kosten (pacht, analyse, onderhoud grachten, …) | F4: 420 | G4: 1 | H4: =F4*G4 -> 420 | I4: =H4 -> 420 | M4: 420 | N4: 1 | O4: =M4*N4 -> 420 | P4: =O4 -> 420 | T4: 420 | U4: 1 | V4: =T4*U4 -> 420 | W4: =V4 -> 420 | AA4: 420 | AB4: 1 | AC4: =AA4*AB4 -> 420 | AG4: 420 | AH4: 1 | AI4: =AG4*AH4 -> 420 | AM4: 420 | AN4: 1 | AO4: =AM4*AN4 -> 420 | AS4: 420 | AT4: 1 | AU4: =AS4*AT4 -> 420
B5: Bodembewerking | F5: =75+45 -> 120 | G5: =1/5 -> 0.2 | H5: =F5*G5 -> 24 | I5: 24 | M5: =75+45 -> 120 | N5: =1/5 -> 0.2 | O5: =M5*N5 -> 24 | P5: 24 | T5: =75+45 -> 120 | U5: 1 | V5: =T5*U5 -> 120 | W5: 120 | AA5: 75 | AB5: 0.2 | AC5: =AA5*AB5 -> 15 | AG5: =75+45 -> 120 | AH5: 1 | AI5: =AG5*AH5 -> 120 | AM5: =75+45 -> 120 | AN5: 1 | AO5: =AM5*AN5 -> 120 | AU5: =AS5*AT5 -> 0
B6: Zaaizaad | C6: 10 | D6: kg/ha | E6: 20 | F6: =C6*E6 -> 200 | G6: =1/5 -> 0.2 | H6: =F6*G6 -> 40 | I6: 40 | J6: 10 | K6: kg/ha | L6: 20 | M6: =J6*L6 -> 200 | N6: =1/5 -> 0.2 | O6: =M6*N6 -> 40 | P6: 40 | Q6: 20 | R6: kg/ha | S6: 10 | T6: =Q6*S6 -> 200 | U6: 1 | V6: =T6*U6 -> 200 | W6: 200 | AA6: =560/(90/10000) -> 62222.22222 | AB6: =1/15 -> 0.06666666667 | AC6: =AA6*AB6 -> 4148.148148 | AD6: 10 | AE6: kg/ha | AF6: 5.5 | AG6: =AD6*AF6 -> 55 | AH6: 1 | AI6: =AG6*AH6 -> 55 | AJ6: 10 | AK6: kg/ha | AL6: 5.5 | AM6: =AJ6*AL6 -> 55 | AN6: 1 | AO6: =AM6*AN6 -> 55 | AU6: =AS6*AT6 -> 0
B7: Zaaizaad groenbemester | H7: 0 | I7: 0 | O7: 0 | P7: 0 | V7: 0 | W7: 0 | AC7: 0 | AI7: 0 | AO7: 0 | AU7: 0
B8: Zaaien (incl groenbedekker) | F8: 65 | G8: =1/5*1.5 -> 0.3 | H8: =F8*G8 -> 19.5 | I8: 19.5 | M8: 65 | N8: =1/5*1.5 -> 0.3 | O8: =M8*N8 -> 19.5 | P8: 19.5 | T8: 65 | U8: =1*1.5 -> 1.5 | V8: =T8*U8 -> 97.5 | W8: 97.5 | AC8: =AA8*AB8 -> 0 | AG8: 65 | AH8: 1 | AI8: =AG8*AH8 -> 65 | AM8: 65 | AN8: =1*1.5 -> 1.5 | AO8: =AM8*AN8 -> 97.5 | AU8: =AS8*AT8 -> 0
B9: Gewasbescherming product | H9: 0 | I9: 0 | O9: 0 | P9: 0 | V9: 0 | W9: 0 | AC9: 0 | AI9: 0 | AO9: 0 | AU9: 0
B10: Gewasbescherming toepassing | H10: 0 | I10: 0 | O10: 0 | P10: 0 | V10: 0 | W10: 0 | AC10: 0 | AI10: 0 | AO10: 0 | AU10: 0
B11: Klepelen/maaien of vernietigen | F11: 150 | G11: 1 | H11: =F11*G11 -> 150 | I11: 150 | M11: 150 | N11: 1 | O11: =M11*N11 -> 150 | P11: 150 | T11: 150 | U11: 1 | V11: =T11*U11 -> 150 | W11: 150 | AA11: 200 | AB11: 1 | AC11: =AA11*AB11 -> 200 | AG11: 150 | AH11: 1 | AI11: =AG11*AH11 -> 150 | AM11: 150 | AN11: 1 | AO11: =AM11*AN11 -> 150 | AU11: =AS11*AT11 -> 0
B12: Oogst | H12: 0 | I12: =H12 -> 0 | O12: 0 | P12: =O12 -> 0 | V12: 0 | W12: =V12 -> 0 | AC12: 0 | AI12: 0 | AO12: 0 | AU12: 0
B13: Kunstmest product | H13: =F13*G13 -> 0 | I13: =H13 -> 0 | O13: =M13*N13 -> 0 | P13: 0 | V13: =T13*U13 -> 0 | W13: 0 | AC13: =AA13*AB13 -> 0 | AI13: =AG13*AH13 -> 0 | AO13: =AM13*AN13 -> 0 | AU13: =AS13*AT13 -> 0
B14: Kunstmest toepassing | H14: =F14*G14 -> 0 | I14: 0 | O14: =M14*N14 -> 0 | P14: 0 | V14: =T14*U14 -> 0 | W14: 0 | AC14: =AA14*AB14 -> 0 | AI14: =AG14*AH14 -> 0 | AO14: =AM14*AN14 -> 0 | AU14: =AS14*AT14 -> 0
B15: Dierlijke mest toepassing | H15: =F15*G15 -> 0 | I15: 0 | O15: =M15*N15 -> 0 | P15: 0 | V15: =T15*U15 -> 0 | W15: 0 | AC15: =AA15*AB15 -> 0 | AI15: =AG15*AH15 -> 0 | AO15: =AM15*AN15 -> 0 | AU15: =AS15*AT15 -> 0
B16: TOTALE KOSTPRIJS | H16: =SUM(H4:H15) -> 653.5 | I16: =SUM(I4:I15) -> 653.5 | O16: =SUM(O4:O15) -> 653.5 | P16: =SUM(P4:P15) -> 653.5 | V16: =SUM(V4:V15) -> 987.5 | W16: =SUM(W4:W15) -> 987.5 | AC16: =SUM(AC4:AC15) -> 4783.148148 | AI16: =SUM(AI4:AI15) -> 810 | AO16: =SUM(AO4:AO15) -> 842.5 | AU16: =SUM(AU4:AU15) -> 420
A17: BATEN
A18: 1 | B18: Uitgespaarde kost mestafzet/vergoeding plaatsingsruimte mest | H18: 0 | I18: =H18 -> 0 | O18: 0 | P18: =O18 -> 0 | V18: 0 | W18: =V18 -> 0 | AC18: 0 | AD18: 35 | AE18: m3 | AF18: =dashboard!$C$11 -> 14 | AG18: EUR/ m3 | AI18: =AD18*AF18 -> 490 | AJ18: 35 | AK18: m3 | AL18: =dashboard!$C$11 -> 14 | AM18: EUR/ m3 | AO18: =AJ18*AL18 -> 490 | AU18: =AP18*AR18 -> 0
A19: =IF(dashboard!$L$54=TRUE,0,1) -> 1 | B19: Verkoopwaarde | C19: 5.5 | D19: ton DS/ha | E19: 90 | F19: EUR/ ton DS* | G19: 0.1 | H19: =$A$19*C19*E19 -> 495 | I19: =H19 -> 495 | O19: 0 | P19: =O19 -> 0 | V19: 0 | W19: =V19 -> 0 | AC19: 0 | AI19: 0 | AO19: 0 | AU19: 0
A20: =IF(dashboard!$L$54=TRUE,1,0) -> 0 | B20: Voederwaardeopbrengst (voederwaardeprijzen.nl) | C20: 600 | D20: VEM | E20: =dashboard!$K$22 -> 16.13846154 | F20: ct/kVEM | G20: =(C19*(1-H20)*C20*E20)/100 -> 479.3123077 | H20: 0.1 | I20: 0.1 | P20: 0 | W20: =V20 -> 0
C21: 47 | D21: DVE | E21: =dashboard!$K$24 -> 66.99230769 | F21: ct/kgDVE | G21: =C19*(1-H20)*C21*E21/100 -> 155.8576038 | H21: =(G20+G21)*$A$20 -> 0 | I21: 0 | P21: 0 | W21: =V21 -> 0
A22: 1 | B22: Vergoeding BO, premie, .. (°inkomenssteun+vergroening GLB niet meegerekend) | H22: 1317 | I22: 686 | O22: 1812 | P22: 1181 | V22: 1972 | W22: 1341 | AC22: =AA31 -> 7480 | AI22: 0 | AO22: 0 | AU22: 0
B23: TOTALE OPBRENGST | H23: =SUM(H18:H22) -> 1812.1 | I23: =SUM(I18:I19,I21:I22) -> 1181 | O23: =SUM(O18:O22) -> 1812 | P23: =SUM(P18:P19,P21:P22) -> 1181 | V23: =SUM(V18:V22) -> 1972 | W23: =SUM(W18:W19,W21:W22) -> 1341 | AC23: =SUM(AC18:AC22) -> 7480 | AI23: =SUM(AI18:AI22) -> 490 | AO23: =SUM(AO18:AO22) -> 490 | AU23: =SUM(AU18:AU22) -> 0
A24: SALDO/ha | H24: =H23-H16 -> 1158.6 | I24: =I23-I16 -> 527.5 | O24: =O23-O16 -> 1158.5 | P24: =P23-P16 -> 527.5 | V24: =V23-V16 -> 984.5 | W24: =W23-W16 -> 353.5 | AC24: =AC23-AC16 -> 2696.851852 | AI24: =AI23-AI16 -> -320 | AO24: =AO23-AO16 -> -352.5 | AU24: =AU23-AU16 -> -420
A25: opp EAG | AD25: 1 | AE25: ha EAG | AJ25: 1.5 | AK25: ha EAG | AP25: 1 | AQ25: ha EAG
C26: strook van 6m, of 1,67 km voor 1 ha | J26: strook van 6m, of 1,67 km voor 1 ha | Q26: strook van 6m, of 1,67 km voor 1 ha | AJ26: strook van 6m, of 1,67 km voor 1 ha, perceel apart intekenen
AA28: 1.87 | AB28: EUR/l m
AA29: 2.5 | AB29: m breed
AA30: =AA28/AA29 -> 0.748 | AB30: EUR/m2
B31: =C1 -> BO GRASSTROOK 15/6 | AA31: =AA30*10000 -> 7480 | AB31: EUR/ha
B32: opbrengst DS/ha | C32: =C19 -> 5.5 | D32: bron nvzv studiedag, LCV 02 geel slechts 4 ton | J32: =J19 -> 0 | Q32: =Q19 -> 0 | AD32: =AD19 -> 0 | AJ32: =AJ19 -> 0 | AP32: =AP19 -> 0
B33: VEM | C33: =C20 -> 600 | D33: bron nvwv studiedag, LCV 02 geel slechts 600 | J33: =J20 -> 0 | Q33: =Q20 -> 0 | AD33: =AD20 -> 0 | AJ33: =AJ20 -> 0 | AP33: =AP20 -> 0
B34: DVE | C34: =C21 -> 47 | D34: bron nvew studiedag, LCV 02 geel selchts 12% RE of 45 | J34: =J21 -> 0 | Q34: =Q21 -> 0 | AD34: =AD21 -> 0 | AJ34: =AJ21 -> 0 | AP34: =AP21 -> 0
B35: KOSTEN
B36: algemeen | C36: =H4 -> 420 | J36: =O4 -> 420 | Q36: =V4 -> 420 | AD36: =AI4 -> 420 | AJ36: =AO4 -> 420 | AP36: =AU4 -> 420
B37: aanleg (bodembewerking, zaai) | C37: =H5+H7+H8 -> 43.5 | J37: =O5+O7+O8 -> 43.5 | Q37: =V5+V7+V8 -> 217.5 | AD37: =AI5+AI7+AI8 -> 185 | AJ37: =AO5+AO7+AO8 -> 217.5 | AP37: =AU5+AU7+AU8 -> 0
B38: zaaizaad | C38: =H6+H7 -> 40 | J38: =O6+O7 -> 40 | Q38: =V6+V7 -> 200 | AD38: =AI6+AI7 -> 55 | AJ38: =AO6+AO7 -> 55 | AP38: =AU6+AU7 -> 0
B39: gewasbescherming | C39: =H9+H10 -> 0 | J39: =O9+O10 -> 0 | Q39: =V9+V10 -> 0 | AD39: =AI9+AI10 -> 0 | AJ39: =AO9+AO10 -> 0 | AP39: =AU9+AU10 -> 0
B40: kunstmest | C40: =H13+H14 -> 0 | J40: =O13+O14 -> 0 | Q40: =V13+V14 -> 0 | AD40: =AI13+AI14 -> 0 | AJ40: =AO13+AO14 -> 0 | AP40: =AU13+AU14 -> 0
B41: dierlijke mest toepassing | C41: =H15 -> 0 | J41: =O15 -> 0 | Q41: =V15 -> 0 | AD41: =AI15 -> 0 | AJ41: =AO15 -> 0 | AP41: =AU15 -> 0
B42: oogst | C42: =H12+H11 -> 150 | J42: =O12+O11 -> 150 | Q42: =V12+V11 -> 150 | AD42: =AI12+AI11 -> 150 | AJ42: =AO12+AO11 -> 150 | AP42: =AU12+AU11 -> 0
B43: TOTAAL KOSTEN | C43: =SUM(C36:C42) -> 653.5 | J43: =SUM(J31:J42) -> 653.5 | Q43: =SUM(Q31:Q42) -> 987.5 | AD43: =SUM(AD31:AD42) -> 810 | AJ43: =SUM(AJ31:AJ42) -> 842.5 | AP43: =SUM(AP31:AP42) -> 420
B44: BATEN
B45: uitgespaarde mestafzet | C45: =H18 -> 0 | J45: =O18 -> 0 | Q45: =V18 -> 0 | AD45: =AI18 -> 490 | AJ45: =AO18 -> 490 | AP45: =AU18 -> 0
B46: voederwaardeopbrengst | C46: =H21 -> 0 | J46: =O21 -> 0 | Q46: =V21 -> 0 | AD46: =AI21 -> 0 | AJ46: =AO21 -> 0 | AP46: =AU21 -> 0
B47: vergoeding of premie | C47: =H22 -> 1317 | J47: =O22 -> 1812 | Q47: =V22 -> 1972 | AD47: =AI22 -> 0 | AJ47: =AO22 -> 0 | AP47: =AU22 -> 0
B48: TOTAAL BATEN | C48: =SUM(C45:C47) -> 1317 | J48: =SUM(J45:J47) -> 1812 | Q48: =SUM(Q45:Q47) -> 1972 | AD48: =SUM(AD45:AD47) -> 490 | AJ48: =SUM(AJ45:AJ47) -> 490 | AP48: =SUM(AP45:AP47) -> 0
B49: SALDO | C49: =C48-C43 -> 663.5 | J49: =J48-J43 -> 1158.5 | Q49: =Q48-Q43 -> 984.5 | AD49: =AD48-AD43 -> -320 | AJ49: =AJ48-AJ43 -> -352.5 | AP49: =AP48-AP43 -> -420

Sheet dashboard
B1: Dit rekenblad werd ontwikkeld in het kader van de projecten 'Dorp van de 7 Neten, proeftuin voor agrobiodiversiteit'
E2: De resultaten van dit rekenblad zijn enkel richtinggevend en passen in een vrijblijvend advies, gebaseerd op gemiddelde cijfers. Hooibeekhoeve kan niet aansprakelijk worden gesteld voor eventuele beslissingen die genomen worden op basis van het uitgebrachte advies
B4: en 'Zot van pAtrijs'
A7: INPUT | B7: 1) Pas de kosten en opbrengsten aan, aan je eigen bedrijfssituatie | J7: =C12*C16 -> 1670
C8: MIJN BEDRIJF | J8: standaard waarden
B9: pas cijfers in lichtgeel gekleurde cellen aan | C9: mais | D9: gras | J9: mais | L9: gras
B10: kost uitrijden mest per m3 | C10: =J10 -> 3.5 | D10: =L10 -> 4.5 | E10: EUR/m3 | J10: 3.5 | L10: 4.5 | M10: EUR/m3
B11: mestafzet of vergoeding voor mestaanvaarding | C11: =J11 -> 14 | E11: EUR/m3 | F11: indien mest gratis wordt uigereden, reken de kost van het mestrijden bij als vergoeding! | J11: 14 | M11: EUR/m3
B12: aankoop/verkoopprijs | C12: =J12 -> 100 | D12: 120 | E12: EUR/kg DS | J12: 100 | L12: 120 | M12: EUR/kg DS
B13: oogstkost incl. transport | C13: =J13 -> 310 | D13: =D14*D15 -> 750 | E13: EUR/ha | J13: 310 | L13: =L14*L15 -> 750 | M13: EUR/ha
B14: oogstkost (maaien, schudden, harken, inkuilen) | D14: =L14 -> 150 | E14: EUR/snede | L14: 150 | M14: EUR/snede
B15: aantal snedes/jaar | D15: =L15 -> 5 | E15: snedes/jaar | F15: cijfes komen overeen met verkoopprijs mais van | L15: 5 | M15: snedes/jaar
B16: opbrengst kg DS/ha: | C16: =J16 -> 16.7 | D16: =L16 -> 11 | F16: =C16*C12-C13 -> 1360 | G16: EUR/ha op stam | J16: 16.7 | L16: 11
B17: % opbrengstderving in randen: | C17: 0.5 | F17: ! Niet elke m2 brengt evenveel op, hoeveel lager brengt je 'marginale' opp op? | J17: 0.25
B18: VEM: | C18: =J18 -> 950 | D18: =L18 -> 900 | J18: 950 | L18: 900
B19: DVE: | C19: =J19 -> 52 | D19: =L19 -> 65 | F19: gewogen gemiddelde alle snedes voor gras | J19: 52 | L19: 65
J21: Jaargemiddelde voederwaardeprijzen (ct) 2017
J22: kVEM | K22: 16.13846154 | L22: ct/kVEM
J23: kVEM | K23: 16.13846154 | L23: ct/kVEM | M23: gemiddelde voederwaardeprijzen.nl 2017
B24: 2) Vul je oppervlaktes in : | J24: kgDVE toeslag | K24: 66.99230769 | L24: ct/kgDVE
B25: Productieve opp (ha) | C25: Scenario 1 | E25: Scenario 2 | G25: Scenario 3 | L25: 3
B26: vul opp (ha) in licht gekleurde cellen in | C26: 100% opbr | D26: =-$C$17*100&"% opbr" -> -50% opbr | E26: 2 | F26: =-$C$17*100&"% opbr" -> -50% opbr | G26: 3 | H26: =-$C$17*100&"% opbr" -> -50% opbr | J26: 100% opbr | K26: =-$C$17*100&"% opbr" -> -50% opbr
B27: grasland BG (derogatie) | C27: 13.5 | E27: 13.5 | G27: 13.5 | J27: ='kostenbaten prod teelten'!V24 -> 89.25 | K27: ='kostenbaten prod teelten'!W24 -> -570.75
B28: grasland niet BG (derogatie) | I28: vul ook grasklaver of VLI in bij grasland voor EAG check | J28: =J27 -> 89.25 | K28: =K27 -> -570.75
B29: mais zonder GB | C29: 11 | D29: 0.5 | E29: 11 | G29: 11 | J29: ='kostenbaten prod teelten'!AJ24 -> 695.5 | K29: ='kostenbaten prod teelten'!AK24 -> -139.5
B30: mais met GB | C30: 10 | E30: 10 | G30: 10 | J30: ='kostenbaten prod teelten'!AQ24 -> 584.5 | K30: ='kostenbaten prod teelten'!AR24 -> -250.5
B31: gras+mais (derogatie) | J31: ='kostenbaten prod teelten'!AC24 -> 512.5 | K31: ='kostenbaten prod teelten'!AD24 -> -454.5
B32: andere teelten | C32: 0 | E32: 0 | G32: 0 | I32: andere teelten worden niet meegenomen in econ vgl, voor correcte EAG check : gewasgroep areeal mais of gras > andere teelten
B33: Totaal prod opp (excl andere) | C33: =SUM(C27:C31) -> 34.5 | D33: 0.5 | E33: 34.5 | F33: 0 | G33: 34.5 | H33: 0
B34: Niet productieve opp (ha) | C34: Scenario 1 | E34: Scenario 2 | G34: Scenario 3 | J34: BO/EAG | K34: BO + EAG
B35: vul opp (ha) in licht gekleurde cellen in | C35: BO/EAG | D35: BO + EAG | E35: BO/EAG | F35: BO + EAG | G35: BO/EAG | H35: BO + EAG
B36: BO grasstrook 15/6 | C36: 0 | D36: 0 | J36: ='kostenbaten niet prod teelt'!H24 -> 1158.6 | K36: ='kostenbaten niet prod teelt'!I24 -> 527.5
B37: BO gemengde grasstrook | C37: 0 | D37: 0 | E37: 0.5 | H37: 0.5 | J37: ='kostenbaten niet prod teelt'!O24 -> 1158.5 | K37: ='kostenbaten niet prod teelt'!P24 -> 527.5
B38: BO bloemenstrook | C38: 0 | D38: 0 | J38: ='kostenbaten niet prod teelt'!V24 -> 984.5 | K38: ='kostenbaten niet prod teelt'!W24 -> 353.5
B39: BO onderhoud haag | C39: 0
B40: EAG Braak (code 9832) | C40: 0 | J40: ='kostenbaten niet prod teelt'!$AI$24 -> -320
B41: EAG Braak (code 89) | C41: 0 | J41: ='kostenbaten niet prod teelt'!$AU$24 -> -420
B42: EAG AKR | C42: 0 | J42: ='kostenbaten niet prod teelt'!AO24 -> -352.5
B43: TOTAAL areaal waarvan niet prod | C43: =SUM(C27:C32,D27:D32,C36:C42,D36:D38) -> 35 | D43: =SUM(C36:C42,D36:D38) -> 0 | E43: =SUM(E27:E32,F27:F32,E36:E42,F36:F38) -> 35 | F43: =SUM(E36:E42,F36:F38) -> 0.5 | G43: =SUM(G27:G32,H27:H32,G36:G42,H36:H38) -> 35 | H43: =SUM(G36:G42,H36:H38) -> 0.5 | I43: =IF((C43+E43+G43)/3=C43,"ok","niet gelijk") -> ok
A44: OUTPUT | B44: 3) teeltdiv/EAG check: | C44: Scenario 1 | E44: Scenario 2 | G44: Scenario 3
B45: TOTAAL subs bouwland | C45: =C43-C27 -> 21.5 | E45: =E43-E27 -> 21.5 | G45: =G43-G27 -> 21.5
B46: % GRAS | C46: =MAX((C28+C27+D27+D28)/C43,(C28+D28+C41)/C45) -> 0.3857142857 | E46: =MAX((E28+E27)/E43,(E28+E41)/E45) -> 0.3857142857 | G46: =MAX((G28+G27)/G43,(G28+G41)/G45) -> 0.3857142857
B47: % grootste gewasgroep | C47: =IF((C27+D27+C28+D28)>(C29+D29+C30+D30+C31+D31),"gras","mais") -> mais | D47: =IF(MAX(C28+D28,C29+D29+C30+D30+C31+D31,C32)<0.75*C45,"ok","!!") -> !! | E47: =IF((E27+F27+E28+F28)>(E29+F29+E30+F30+E31+F31),"gras","mais") -> mais | F47: =IF(MAX(E28+F28,E29+F29+E30+F30+E31+F31,E32)<0.75*E45,"ok","!!") -> !! | G47: =IF((G27+H27+G28+H28)>(G29+H29+G30+H30+G31+H31),"gras","mais") -> mais | H47: =IF(MAX(G28+H28,G29+H29+G30+H30+G31+H31,G32)<0.75*G45,"ok","!!") -> !!
B48: 3e teelt? | C48: =IF(C45>=30,0.05*C45,"niet nodig") -> niet nodig | E48: =IF(E45>=30,0.05*E45,"niet nodig") -> niet nodig | G48: =IF(G45>=30,0.05*G45,"niet nodig") -> niet nodig
B49: teeltdiversificatie ok? | C49: =IF(C45<10,"ok",IF(C46>0.75,"ok",IF(C45<30,IF(D47="ok","ok","grootste gewas"),IF(C32>C48,"ok","niet ok")))) -> grootste gewas | E49: =IF(E45<10,"ok",IF(E46>0.75,"ok",IF(E45<30,IF(F47="ok","ok","grootste gewas"),IF(E32>E48,"ok","niet ok")))) -> grootste gewas | G49: =IF(G45<10,"ok",IF(G46>0.75,"ok",IF(G45<30,IF(H47="ok","ok","grootste gewas"),IF(G32>G48,"ok","niet ok")))) -> grootste gewas
B50: opp EAG nodig? | C50: =IF(C45<10,"nee",IF(C46>0.75,"nee",C45*0.05)) -> 1.075 | E50: =IF(E45<10,"nee",IF(E46>0.75,"nee",E45*0.05)) -> 1.075 | G50: =IF(G45<10,"nee",IF(G46>0.75,"nee",G45*0.05)) -> 1.075 | I50: Deze tool omvat niet volgende EAG of agromilieu-maatregelen
B51: overige EAG gerealiseerd op bedrijf | C51: 0 | E51: 0 | G51: 0 | I51: =EAG opp van grachten, poelen, bomenrij, bomen in groep, bosrand met prod, houtkant, ..
B52: EAG gerealiseerd | C52: =(C30+D30+C31+D31)*$M$80+(D36+D37+D38)*$M$73+C41*$M$69+C40*$M$82+C42*$M$73+C51 -> 3 | E52: =(E30+F30+E31+F31)*$M$80+(F36+F37+F38)*$M$73+E41*$M$69+E40*$M$82+E42*$M$73+E51 -> 3 | G52: =(G30+H30+G31+H31)*$M$80+(H36+H37+H38)*$M$73+G41*$M$69+G40*$M$82+G42*$M$73+G51 -> 3.75
B53: EAG ok? | C53: =IF(C50="nee","ja",IF(C52>=C50,"ja","nee")) -> ja | E53: =IF(E50="nee","ja",IF(E52>=E50,"ja","nee")) -> ja | G53: =IF(G50="nee","ja",IF(G52>=G50,"ja","nee")) -> ja | J53: kVEM | K53: 16.13846154 | L53: ct/kVEM
K54: gewassen verkopen | L54: FALSE
B55: 4) Vergelijk rendabiliteit (/areaal/jaar)
C56: Scenario 1 | E56: Scenario 2 | G56: Scenario 3 | J56: Scenario 1 | L56: Scenario 2 | N56: Scenario 3
B57: SALDO PROD TEELTEN EUR/ha/jaar | C57: =J57/(C33+D33) -> 418.0178571 | E57: =L57/(E33+F33) -> 426.0978261 | G57: =N57/(G33+H33) -> 426.0978261 | J57: =C27*$J27+D27*$K27+C28*$J28+D28*$K28+C29*$J29+D29*$K29+C30*$J30+D30*$K30+C31*$J31+D31*$K31 -> 14630.625 | L57: =E27*$J27+F27*$K27+E28*$J28+F28*$K28+E29*$J29+F29*$K29+E30*$J30+F30*$K30+E31*$J31+F31*$K31 -> 14700.375 | N57: =G27*$J27+H27*$K27+G28*$J28+H28*$K28+G29*$J29+H29*$K29+G30*$J30+H30*$K30+G31*$J31+H31*$K31 -> 14700.375
B58: SALDO NIET PROD EUR/ha/jaar | C58: =IF(D43>0,J58/D43,0) -> 0 | E58: =IF(F43>0,L58/F43,0) -> 1158.5 | G58: =IF(H43>0,N58/H43,0) -> 527.5 | J58: =C36*$J36+D36*$K36+C37*$J37+D37*$K37+C38*$J38+D38*$K38+C40*$J40+C41*$J41+C42*$J42 -> 0 | L58: =E36*$J36+F36*$K36+E37*$J37+F37*$K37+E38*$J38+F38*$K38+E40*$J40+E41*$J41+E42*$J42 -> 579.25 | N58: =G36*$J36+H36*$K36+G37*$J37+H37*$K37+G38*$J38+H38*$K38+G40*$J40+G41*$J41+G42*$J42 -> 263.75
B59: TOTAAL TEELTSALDO EUR/ha/jaar | C59: =J59/(C33+D33+D43) -> 418.0178571 | E59: =L59/(E33+F33+F43) -> 436.5607143 | G59: =N59/(G33+H33+H43) -> 427.5464286 | J59: =J57+J58 -> 14630.625 | L59: =L57+L58 -> 15279.625 | N59: =N57+N58 -> 14964.125
B60: meeropbrengst tov Scen 1 (EUR/ha/jaar) | E60: =L60/(E33+F33+F43) -> 18.54285714 | G60: =N60/(G33+H33+H43) -> 9.528571429 | L60: =L59-J59 -> 649 | N60: =N59-J59 -> 333.5
B61: kost compensatie niet prod. opp. tov Scen 1 (EUR/ha/jaar) | E61: =IF($L$54=FALSE,L61/(E33+F33+F43),"") -> 23.85714286 | G61: =IF($L$54=FALSE,N61/(G33+H33+H43),"") -> 23.85714286 | I61: geldig als je maar net genoeg voedergewas hebt, kost mais, afwegen of bijproducten goedkoper zijn | L61: =F43*$C$12*$C$16+F33*$C$17*$C$12*$C$16 -> 835 | N61: =H43*$C$12*$C$16+H33*$C$17*$C$12*$C$16 -> 835
B62: EINDSALDO EUR/ha/jaar tov Scen 1 | E62: =IF($L$54=FALSE,E60-E61,"") -> -5.314285714 | G62: =IF($L$54=FALSE,G60-G61,"") -> -14.32857143 | I62: EINTRESULTAAT inl. compensatie | K62: =L62/4 -> 3611.15625 | L62: =L59-L61 -> 14444.625 | N62: =N59-N61 -> 14129.125
B63: EINDSALDO EUR/ha/jaar tov Scen 2 | G63: =G60-E60 -> -9.014285714 | K63: =N62/4 -> 3532.28125
B64: exclusief basisbetaling en vergroeningspremie
J67: invulling EAG | K67: omz factor | M67: weg factor | O67: bemesting | P67: teeltcodes
T68: intekenen
J69: braak | M69: 1 | O69: nee | P69: 89 braak,98 fauna,9832 bloemen
T70: apart perceel
J72: 1m teeltvrije strook | M72: 1.5 | O72: nee
J73: akkerrand | M73: 1.5 | O73: volgens wetgeving | P73: 82 braak,98 fauna,9831 bloemen, gras | T73: deel van perceel (automatisch)
J74: agroforestry | M74: 1 | T74: apart perceel AKR of BO bij VLM
J76: strook langs bosrand zonder prod | K76: 6 | M76: 1.5 | O76: nee
J77: strook langs bosrand met prod | M77: 0.3
J78: korte omloothout | M78: 0.5 | P78: 883, 963
J79: beboste landbouwgrond | M79: 1
J80: groenbedekking | M80: 0.3 | P80: nateelt 657, 658, 659, 661, 700
J81: stikstofbindend gewas | M81: 1 | P81: 43,51,52,53,721,722,723,731,732,744,747
J82: houtkant/heg | M82: 2 | O82: 0 | P82: 4
J83: groep bomen | M83: 1.5 | O83: 0 | P83: 895
J84: bomenrij | M84: 2 | O84: 0 | P84: 10
J85: poelen | M85: 1.5 | O85: 0 | P85: 3
J86: grachten | K86: 2.5 | M86: 2 | O86: 0 | P86: waterloop tsn 2 en 6m
